[Event "Ujir Singh Thapa Memorial 2080"]
[Site "Butwal"]
[Date "2024.04.07"]
[Round "5.3"]
[White "Rishabh Nishad"]
[Black "Bristy Mukherjee"]
[Result "1-0"]
[ECO "B12"]
[WhiteElo "1953"]
[BlackElo "1903"]
[Annotator "RC"]
[PlyCount "95"]
[EventDate "2024.04.03"]
[EventType "swiss"]
[EventCountry "NEP"]
[SourceTitle "playchess.com"]
[Source "ChessBase"]
[SourceQuality "1"]
[TimeControl "3600+30"]

1. e4 {[%emt 0:00:08]} c6 {[%emt 0:01:23]} 2. d4 {[%emt 0:00:41]} d5 {[%emt 0:00:24]} 3. e5 {[%emt 0:00:13]} Bf5 {[%emt 0:00:22]} 4. Nd2 {[%emt 0:00:08]} e6 {[%emt 0:01:50]} 5. Nb3 {[%emt 0:00:11]} Nd7 {[%emt 0:05:50]} 6. Nf3 {[%emt 0:00:21]} c5 {[%emt 0:01:09]} 7. dxc5 {[%emt 0:02:29]} Bxc5 {[%emt 0:01:40]} 8. Bb5 {[%emt 0:12:12]} Rc8 {[%emt 0:01:48]} 9. O-O {[%emt 0:03:41]} a6 {[%emt 0:06:08]} 10. Nxc5 {[%emt 0:04:43]} Rxc5 {[%emt 0:01:15]} 11. Bxd7+ {[%emt 0:00:26]} Qxd7 {[%emt 0:00:12]} 12. Nd4 {[%emt 0:01:14]} Ne7 {[%emt 0:01:00]} 13. b3 {[%emt 0:07:21]} Nc6 {[%emt 0:04:14]} 14. Nxf5 {[%emt 0:04:07]} exf5 {[%emt 0:00:30]} 15. Ba3 {[%emt 0:02:16]} Rc3 {[%emt 0:10:53]} 16. Qd2 {[%emt 0:02:46]} d4 {[%emt 0:01:02]} 17. Rfe1 {[%emt 0:10:33]} Kd8 {[%emt 0:11:38]} 18. Rad1 {[%emt 0:04:50]} Kc8 {[%emt 0:00:39]} 19. Bb2 {[%emt 0:04:12]} Rc5 {[%emt 0:00:35]} 20. c4 {[%emt 0:01:30]} Rxe5 {[%emt 0:02:09]} 21. Rxe5 {[%emt 0:00:32]} Nxe5 {[%emt 0:00:05]} 22. Qxd4 {[%emt 0:00:54]} Qxd4 {[%emt 0:01:17]} 23. Rxd4 {[%emt 0:00:03]} Re8 {[%emt 0:01:01]} 24. Kf1 {[%emt 0:00:23]} g6 {[%emt 0:01:33]} 25. h3 {[%emt 0:01:35]} Nc6 {[%emt 0:00:26]} 26. Rd2 {[%emt 0:00:25]} Rd8 {[%emt 0:02:45]} 27. Rxd8+ {[%emt 0:00:17]} Kxd8 {[%emt 0:00:22]} 28. Bc3 {[%emt 0:00:13]} Kd7 {[%emt 0:00:11]} 29. Ke2 {[%emt 0:00:22]} Ke6 {[%emt 0:00:21]} 30. Ke3 {[%emt 0:00:23]} g5 {[%emt 0:00:24]} 31. f4 {[%emt 0:02:00]} g4 {[%emt 0:00:22]} 32. a3 {[%emt 0:05:21]} Ne7 {[%emt 0:04:23]} 33. a4 {[%emt 0:00:00]} Ng6 {[%emt 0:00:13]} 34. Be1 {[%emt 0:00:00]} Ne7 {[%emt 0:00:26]} 35. b4 {[%emt 0:00:00]} Ng6 {[%emt 0:05:44]} 36. h4 {[%emt 0:00:16]} f6 {[%emt 0:02:14]} 37. g3 {[%emt 0:00:36]} Ne7 {[%emt 0:01:14]} 38. Kd4 {[%emt 0:00:52]} Kd6 {[%emt 0:00:35]} 39. b5 {[%emt 0:00:34]} Nc8 {[%emt 0:00:52]} 40. Bb4+ {[%emt 0:00:35]} Kd7 {[%emt 0:00:26]} 41. a5 {[%emt 0:00:41]} h5 {[%emt 0:00:44]} 42. Bc5 {[%emt 0:00:40]} Kc7 {[%emt 0:00:33]} 43. b6+ {[%emt 0:00:24]} Kc6 {[%emt 0:00:19]} 44. Bb4 {[%emt 0:00:10]} Nxb6 {[%emt 0:00:42]} 45. axb6 {[%emt 0:00:03]} Kxb6 {[%emt 0:00:08]} 46. Kd5 {[%emt 0:00:09]} a5 {[%emt 0:00:30]} 47. Be7 {[%emt 0:00:11]} a4 {[%emt 0:00:49]} 48. Ke6 {[%emt 0:00:33]} 1-0

[Event "Ujir Singh Thapa Memorial 2080"]
[Site "Butwal"]
[Date "2024.04.07"]
[Round "5.4"]
[White "Maharjan, Sajin"]
[Black "Nilesh Kumar"]
[Result "0-1"]
[ECO "B23"]
[WhiteElo "1930"]
[BlackElo "1842"]
[Annotator "RC"]
[PlyCount "53"]
[EventDate "2024.04.03"]
[EventType "swiss"]
[EventCountry "NEP"]
[SourceTitle "playchess.com"]
[Source "ChessBase"]
[SourceQuality "1"]
[TimeControl "3600+30"]

1. e4 {[%emt 0:00:05]} c5 {[%emt 0:00:16]} 2. Nc3 {[%emt 0:00:14]} Nc6 {[%emt 0:02:20]} 3. f4 {[%emt 0:00:06]} e6 {[%emt 0:00:56]} 4. Nf3 {[%emt 0:00:37]} d6 {[%emt 0:00:28]} 5. Bb5 {[%emt 0:01:04]} Bd7 {[%emt 0:00:31]} 6. d3 {[%emt 0:01:24]} Nf6 {[%emt 0:05:12]} 7. O-O {[%emt 0:02:22]} Be7 {[%emt 0:00:44]} 8. e5 {[%emt 0:03:50]} dxe5 {[%emt 0:00:48]} 9. fxe5 {[%emt 0:05:00]} Nd5 {[%emt 0:00:28]} 10. Nxd5 {[%emt 0:05:33]} exd5 {[%emt 0:00:09]} 11. c3 {[%emt 0:05:54]} O-O {[%emt 0:05:04]} 12. Ba4 {[%emt 0:01:01]} Bg4 {[%emt 0:00:17]} 13. Qe1 {[%emt 0:00:32]} f6 {[%emt 0:03:39]} 14. exf6 {[%emt 0:39:48]} Bxf6 {[%emt 0:02:28]} 15. Qg3 {[%emt 0:00:00]} Bf5 {[%emt 0:05:26]} 16. Ng5 {[%emt 0:00:00]} Be5 {[%emt 0:04:22]} 17. Bf4 {[%emt 0:00:00]} Bxf4 {[%emt 0:19:59]} 18. Rxf4 {[%emt 0:00:00]} Bd7 {[%emt 0:00:11]} 19. Raf1 {[%emt 0:00:00]} Qe7 {[%emt 0:01:27]} 20. Bb3 {[%emt 0:00:00]} Be6 {[%emt 0:03:33]} 21. Re1 {[%emt 0:00:00]} c4 {[%emt 0:04:08]} 22. Rxe6 {[%emt 0:00:00]} Qc5+ {[%emt 0:00:34]} 23. d4 {[%emt 0:00:00]} Qb6 {[%emt 0:00:05]} 24. Qh4 {[%emt 0:00:00]} h6 {[%emt 0:00:23]} 25. Qxh6 {[%emt 0:00:00]} gxh6 {[%emt 0:09:32]} 26. Rg6+ {[%emt 0:06:00]} Kh8 27. Rh4 {[%emt 0:00:30]} 0-1

[Event "Ujir Singh Thapa Memorial 2080"]
[Site "Butwal"]
[Date "2024.04.07"]
[Round "5.5"]
[White "Jamal Uddin"]
[Black "Divyanshu Kumar Singh"]
[Result "1/2-1/2"]
[ECO "E46"]
[WhiteElo "1989"]
[BlackElo "1745"]
[Annotator "RC"]
[PlyCount "110"]
[EventDate "2024.04.03"]
[EventType "swiss"]
[EventCountry "NEP"]
[SourceTitle "playchess.com"]
[Source "ChessBase"]
[SourceQuality "1"]
[TimeControl "3600+30"]

1. d4 {[%emt 0:00:36]} Nf6 {[%emt 0:00:01]} 2. c4 {[%emt 0:00:10]} e6 {[%emt 0:00:02]} 3. Nc3 {[%emt 0:01:00]} Bb4 {[%emt 0:00:02]} 4. e3 {[%emt 0:00:07]} O-O {[%emt 0:00:15]} 5. Nge2 {[%emt 0:00:37]} d5 {[%emt 0:01:13]} 6. a3 {[%emt 0:00:30]} Be7 {[%emt 0:00:43]} 7. Ng3 {[%emt 0:00:44]} Nbd7 {[%emt 0:01:48]} 8. Bd3 {[%emt 0:00:51]} dxc4 {[%emt 0:00:15]} 9. Bxc4 {[%emt 0:00:04]} c5 {[%emt 0:00:01]} 10. dxc5 {[%emt 0:02:50]} Ne5 {[%emt 0:01:26]} 11. Qe2 {[%emt 0:02:20]} Bxc5 {[%emt 0:00:47]} 12. O-O {[%emt 0:00:28]} Bd7 {[%emt 0:04:20]} 13. Ba2 {[%emt 0:01:50]} Bc6 {[%emt 0:01:12]} 14. Rd1 {[%emt 0:00:31]} Qe7 {[%emt 0:02:32]} 15. b4 {[%emt 0:01:00]} Bb6 {[%emt 0:00:28]} 16. b5 {[%emt 0:01:09]} Bd7 {[%emt 0:02:26]} 17. Bb2 {[%emt 0:00:57]} a6 {[%emt 0:01:06]} 18. a4 {[%emt 0:01:56]} axb5 {[%emt 0:02:25]} 19. Nxb5 {[%emt 0:01:56]} Ng6 {[%emt 0:02:43]} 20. Bxf6 {[%emt 0:05:51]} gxf6 {[%emt 0:00:23]} 21. Nh5 {[%emt 0:00:34]} Bc6 {[%emt 0:01:39]} 22. Qb2 {[%emt 0:01:14]} e5 {[%emt 0:01:15]} 23. Nd6 {[%emt 0:00:58]} Bd8 {[%emt 0:02:28]} 24. Nf5 {[%emt 0:04:42]} Qc7 {[%emt 0:01:11]} 25. Bb3 {[%emt 0:01:31]} Qb6 {[%emt 0:02:51]} 26. Nxf6+ {[%emt 0:03:13]} Kh8 {[%emt 0:01:24]} 27. Nd7 {[%emt 0:02:18]} Bxd7 {[%emt 0:01:05]} 28. Rxd7 {[%emt 0:00:04]} Qb4 {[%emt 0:01:47]} 29. Qa2 {[%emt 0:02:38]} Qg4 {[%emt 0:00:37]} 30. Rxf7 {[%emt 0:04:25]} Bg5 {[%emt 0:06:52]} 31. Bd1 {[%emt 0:03:21]} Qb4 {[%emt 0:01:19]} 32. Bh5 {[%emt 0:00:25]} Nh4 {[%emt 0:04:07]} 33. Nxh4 {[%emt 0:02:24]} Qxh4 {[%emt 0:00:28]} 34. Bf3 {[%emt 0:01:52]} Rg8 {[%emt 0:08:52]} 35. g3 {[%emt 0:02:37]} Qh6 {[%emt 0:00:43]} 36. Bxb7 {[%emt 0:00:40]} Raf8 {[%emt 0:02:02]} 37. Rxf8 {[%emt 0:05:25]} Rxf8 {[%emt 0:00:39]} 38. Qe2 {[%emt 0:03:00]} e4 {[%emt 0:05:34]} 39. Rb1 {[%emt 0:02:06]} Rxf2 {[%emt 0:00:55]} 40. Kxf2 {[%emt 0:00:51]} Qxh2+ {[%emt 0:00:04]} 41. Ke1 {[%emt 0:06:39]} Qg1+ {[%emt 0:00:02]} 42. Kd2 {[%emt 0:00:19]} Qxb1 {[%emt 0:00:03]} 43. Qb5 {[%emt 0:00:14]} Qa2+ {[%emt 0:01:49]} 44. Kd1 {[%emt 0:00:55]} Qa1+ {[%emt 0:01:38]} 45. Ke2 {[%emt 0:00:21]} Qa2+ {[%emt 0:00:13]} 46. Kf1 {[%emt 0:00:21]} Qa1+ {[%emt 0:01:51]} 47. Ke2 {[%emt 0:03:02]} Qa2+ {[%emt 0:00:03]} 48. Kd1 {[%emt 0:00:09]} Qa1+ {[%emt 0:00:14]} 49. Kc2 {[%emt 0:00:12]} Qa2+ {[%emt 0:00:46]} 50. Qb2+ {[%emt 0:02:29]} Qxb2+ {[%emt 0:00:11]} 51. Kxb2 {[%emt 0:00:02]} Bxe3 {[%emt 0:00:02]} 52. Bxe4 {[%emt 0:00:20]} h5 {[%emt 0:00:55]} 53. Kc3 {[%emt 0:00:31]} Bf2 {[%emt 0:00:09]} 54. Bf3 {[%emt 0:01:09]} Bxg3 {[%emt 0:00:19]} 55. Bxh5 {[%emt 0:00:03]} Bf2 {[%emt 0:00:03]} 1/2-1/2

[Event "Ujir Singh Thapa Memorial 2080"]
[Site "Butwal"]
[Date "2024.04.07"]
[Round "5.6"]
[White "Pandey, Bheem Datt"]
[Black "Raghav, Srivathsav V"]
[Result "0-1"]
[ECO "E92"]
[WhiteElo "1737"]
[BlackElo "1983"]
[Annotator "RC"]
[PlyCount "58"]
[EventDate "2024.04.03"]
[EventType "swiss"]
[EventCountry "NEP"]
[SourceTitle "playchess.com"]
[Source "ChessBase"]
[SourceQuality "1"]
[TimeControl "3600+30"]

1. d4 {[%emt 0:00:30]} Nf6 {[%emt 0:02:51]} 2. c4 {[%emt 0:00:00]} g6 {[%emt 0:00:03]} 3. Nc3 {[%emt 0:00:05]} Bg7 {[%emt 0:00:04]} 4. e4 {[%emt 0:00:44]} d6 {[%emt 0:00:04]} 5. Nf3 {[%emt 0:01:15]} O-O {[%emt 0:00:23]} 6. Be2 {[%emt 0:00:17]} e5 {[%emt 0:00:03]} 7. dxe5 {[%emt 0:01:21]} dxe5 {[%emt 0:00:06]} 8. Qxd8 {[%emt 0:02:40]} Rxd8 {[%emt 0:00:03]} 9. Bg5 {[%emt 0:01:10]} Re8 {[%emt 0:01:28]} 10. Bxf6 {[%emt 0:02:18]} Bxf6 {[%emt 0:00:09]} 11. O-O {[%emt 0:00:50]} c6 {[%emt 0:00:08]} 12. Rfd1 {[%emt 0:00:24]} Na6 {[%emt 0:00:49]} 13. a3 {[%emt 0:00:45]} Nc5 {[%emt 0:00:17]} 14. b4 {[%emt 0:00:43]} Ne6 {[%emt 0:00:18]} 15. Rac1 {[%emt 0:01:27]} Nd4 {[%emt 0:00:26]} 16. h3 {[%emt 0:02:23]} Be6 {[%emt 0:00:12]} 17. Nxd4 {[%emt 0:01:10]} exd4 {[%emt 0:00:04]} 18. Na4 {[%emt 0:02:07]} b6 {[%emt 0:00:07]} 19. Bd3 {[%emt 0:01:18]} Be5 {[%emt 0:01:17]} 20. Nb2 {[%emt 0:00:52]} c5 {[%emt 0:00:45]} 21. b5 {[%emt 0:04:10]} a6 {[%emt 0:00:26]} 22. a4 {[%emt 0:01:55]} axb5 {[%emt 0:00:09]} 23. axb5 {[%emt 0:02:45]} Ra2 {[%emt 0:00:30]} 24. Rc2 {[%emt 0:00:19]} Rea8 {[%emt 0:00:10]} 25. Kf1 {[%emt 0:01:22]} R8a3 {[%emt 0:00:30]} 26. Ke2 {[%emt 0:00:48]} Rc3 {[%emt 0:00:12]} 27. Rb1 {[%emt 0:08:25]} Rxc2+ {[%emt 0:00:46]} 28. Bxc2 {[%emt 0:00:30]} Rxb2 {[%emt 0:00:04]} 29. Rxb2 {[%emt 0:01:33]} d3+ {[%emt 0:00:02]} 0-1

[Event "Ujir Singh Thapa Memorial 2080"]
[Site "Butwal"]
[Date "2024.04.07"]
[Round "5.7"]
[White "Vipul Subhashi"]
[Black "Khadka, Govinda"]
[Result "1-0"]
[ECO "B90"]
[WhiteElo "1971"]
[BlackElo "1729"]
[Annotator "RC"]
[PlyCount "67"]
[EventDate "2024.04.03"]
[EventType "swiss"]
[EventCountry "NEP"]
[SourceTitle "playchess.com"]
[Source "ChessBase"]
[SourceQuality "1"]
[TimeControl "3600+30"]

1. e4 {[%emt 0:06:20]} c5 {[%emt 0:00:09]} 2. Nf3 {[%emt 0:00:05]} d6 {[%emt 0:00:32]} 3. d4 {[%emt 0:01:10]} cxd4 {[%emt 0:00:18]} 4. Nxd4 {[%emt 0:00:12]} Nf6 {[%emt 0:00:35]} 5. Nc3 {[%emt 0:00:14]} a6 {[%emt 0:00:44]} 6. h3 {[%emt 0:00:40]} Nc6 {[%emt 0:00:50]} 7. Be3 {[%emt 0:00:09]} Qc7 {[%emt 0:02:47]} 8. g4 {[%emt 0:00:38]} e6 {[%emt 0:01:09]} 9. Bg2 {[%emt 0:02:13]} Be7 {[%emt 0:03:04]} 10. Nb3 {[%emt 0:02:45]} Ne5 {[%emt 0:06:20]} 11. O-O {[%emt 0:01:55]} Bd7 {[%emt 0:02:20]} 12. Nd2 {[%emt 0:02:51]} b5 {[%emt 0:01:18]} 13. f4 {[%emt 0:00:20]} Nc4 {[%emt 0:00:40]} 14. Nxc4 {[%emt 0:00:16]} Qxc4 {[%emt 0:00:52]} 15. e5 {[%emt 0:00:14]} Nd5 {[%emt 0:02:46]} 16. Nxd5 {[%emt 0:00:10]} exd5 {[%emt 0:01:16]} 17. Bxd5 {[%emt 0:00:09]} Qc8 {[%emt 0:00:11]} 18. exd6 {[%emt 0:00:26]} Bh4 {[%emt 0:01:06]} 19. Qf3 {[%emt 0:00:43]} O-O {[%emt 0:00:40]} 20. Bxa8 {[%emt 0:00:35]} Qxa8 {[%emt 0:03:01]} 21. Qxa8 {[%emt 0:00:43]} Rxa8 {[%emt 0:00:06]} 22. Bf2 {[%emt 0:00:10]} Bf6 {[%emt 0:00:21]} 23. c3 {[%emt 0:00:02]} Rc8 {[%emt 0:00:20]} 24. g5 {[%emt 0:01:13]} Bd8 {[%emt 0:02:02]} 25. Kh2 {[%emt 0:00:03]} f6 {[%emt 0:00:27]} 26. h4 {[%emt 0:00:09]} Rc4 {[%emt 0:00:24]} 27. Be3 {[%emt 0:00:33]} Kf7 {[%emt 0:00:54]} 28. Rad1 {[%emt 0:00:28]} Re4 {[%emt 0:07:31]} 29. Rde1 {[%emt 0:00:28]} Rc4 {[%emt 0:01:13]} 30. Bb6 {[%emt 0:03:02]} Bxb6 {[%emt 0:03:23]} 31. Re7+ {[%emt 0:00:02]} Kg6 {[%emt 0:01:31]} 32. Rxd7 {[%emt 0:00:02]} fxg5 {[%emt 0:01:04]} 33. hxg5 {[%emt 0:00:11]} Re4 {[%emt 0:00:15]} 34. Re7 {[%emt 0:00:08]} 1-0

[Event "Ujir Singh Thapa Memorial 2080"]
[Site "Butwal"]
[Date "2024.04.08"]
[Round "6.1"]
[White "Jaiswal, Rupesh"]
[Black "Rishabh Nishad"]
[Result "1-0"]
[ECO "A40"]
[WhiteElo "1969"]
[BlackElo "1953"]
[Annotator "RC"]
[PlyCount "93"]
[EventDate "2024.04.03"]
[EventType "swiss"]
[EventCountry "NEP"]
[SourceTitle "playchess.com"]
[Source "ChessBase"]
[SourceQuality "1"]
[TimeControl "3600+30"]

1. d4 {[%emt 0:00:03]} f5 {[%emt 0:08:31]} 2. Bf4 {[%emt 0:00:20]} Nf6 {[%emt 0:00:46]} 3. e3 {[%emt 0:00:02]} e6 {[%emt 0:03:01]} 4. Nf3 {[%emt 0:00:29]} b6 {[%emt 0:00:12]} 5. c4 {[%emt 0:01:50]} Bb7 {[%emt 0:00:14]} 6. Nc3 {[%emt 0:00:02]} Bb4 {[%emt 0:00:21]} 7. Qb3 {[%emt 0:01:53]} Bxc3+ {[%emt 0:02:59]} 8. Qxc3 {[%emt 0:00:13]} Ne4 {[%emt 0:01:03]} 9. Qc2 {[%emt 0:01:41]} d6 {[%emt 0:01:08]} 10. Bd3 {[%emt 0:01:05]} Nd7 {[%emt 0:00:22]} 11. h3 {[%emt 0:05:47]} O-O {[%emt 0:00:12]} 12. O-O {[%emt 0:03:02]} Qe7 {[%emt 0:00:45]} 13. Rfe1 {[%emt 0:04:35]} e5 {[%emt 0:02:12]} 14. Bh2 {[%emt 0:00:09]} Ng5 {[%emt 0:03:46]} 15. Nxg5 {[%emt 0:03:54]} Qxg5 {[%emt 0:00:08]} 16. f4 {[%emt 0:00:29]} Qf6 {[%emt 0:06:50]} 17. fxe5 {[%emt 0:01:30]} dxe5 {[%emt 0:00:04]} 18. Rf1 {[%emt 0:03:07]} e4 {[%emt 0:06:11]} 19. Be2 {[%emt 0:00:23]} c5 {[%emt 0:00:55]} 20. Rad1 {[%emt 0:02:04]} Rad8 {[%emt 0:07:43]} 21. dxc5 {[%emt 0:04:30]} Nxc5 {[%emt 0:00:58]} 22. Rxd8 {[%emt 0:01:54]} Rxd8 {[%emt 0:02:06]} 23. Rd1 {[%emt 0:00:52]} Rxd1+ {[%emt 0:01:03]} 24. Qxd1 {[%emt 0:00:37]} h6 {[%emt 0:07:15]} 25. Qd4 {[%emt 0:00:53]} Qxd4 {[%emt 0:01:57]} 26. exd4 {[%emt 0:00:01]} Na4 {[%emt 0:00:13]} 27. b3 {[%emt 0:07:14]} Nc3 {[%emt 0:01:35]} 28. Kf2 {[%emt 0:00:58]} Nxa2 {[%emt 0:03:35]} 29. Bb8 {[%emt 0:00:39]} a6 30. Bc7 {[%emt 0:01:28]} Nc1 {[%emt 0:03:02]} 31. Bxb6 {[%emt 0:01:58]} f4 {[%emt 0:02:10]} 32. d5 {[%emt 0:00:54]} Nxb3 {[%emt 0:02:46]} 33. Bg4 {[%emt 0:00:46]} h5 {[%emt 0:01:00]} 34. Be6+ {[%emt 0:01:43]} Kf8 {[%emt 0:00:31]} 35. d6 {[%emt 0:00:08]} e3+ {[%emt 0:00:47]} 36. Ke1 {[%emt 0:00:44]} Bc6 {[%emt 0:01:25]} 37. d7 {[%emt 0:00:02]} Bxd7 {[%emt 0:00:09]} 38. Bxd7 {[%emt 0:00:01]} Ke7 {[%emt 0:00:55]} 39. Ba4 {[%emt 0:00:50]} Nd2 {[%emt 0:00:07]} 40. c5 {[%emt 0:00:23]} Nc4 {[%emt 0:00:35]} 41. Ba7 {[%emt 0:03:32]} g5 {[%emt 0:00:46]} 42. c6 {[%emt 0:00:44]} Kd8 {[%emt 0:00:22]} 43. Bb3 {[%emt 0:00:08]} Ne5 {[%emt 0:00:45]} 44. Bb6+ {[%emt 0:00:10]} Ke7 {[%emt 0:00:34]} 45. c7 {[%emt 0:00:31]} Nd3+ {[%emt 0:00:10]} 46. Kf1 {[%emt 0:00:20]} f3 {[%emt 0:00:40]} 47. gxf3 {[%emt 0:00:26]} 1-0

[Event "Ujir Singh Thapa Memorial 2080"]
[Site "Butwal"]
[Date "2024.04.08"]
[Round "6.2"]
[White "Tamang, Sudip"]
[Black "Maharjan, Sajin"]
[Result "1/2-1/2"]
[ECO "B36"]
[WhiteElo "1916"]
[BlackElo "1930"]
[Annotator "RC"]
[PlyCount "98"]
[EventDate "2024.04.03"]
[EventType "swiss"]
[EventCountry "NEP"]
[SourceTitle "playchess.com"]
[Source "ChessBase"]
[SourceQuality "1"]
[TimeControl "3600+30"]

1. e4 {[%emt 0:05:51]} c5 {[%emt 0:00:52]} 2. Nf3 {[%emt 0:01:10]} g6 {[%emt 0:03:00]} 3. d4 {[%emt 0:00:07]} cxd4 {[%emt 0:00:05]} 4. Nxd4 {[%emt 0:00:06]} Nc6 {[%emt 0:00:34]} 5. c4 {[%emt 0:00:20]} Nf6 {[%emt 0:00:17]} 6. Nc3 {[%emt 0:00:07]} Nxd4 {[%emt 0:00:14]} 7. Qxd4 {[%emt 0:00:10]} d6 {[%emt 0:00:06]} 8. Be2 {[%emt 0:01:29]} Bg7 {[%emt 0:00:09]} 9. Be3 {[%emt 0:00:37]} O-O {[%emt 0:00:05]} 10. Qd3 {[%emt 0:00:49]} a5 {[%emt 0:02:40]} 11. O-O {[%emt 0:00:24]} a4 {[%emt 0:00:08]} 12. Bd4 {[%emt 0:01:18]} Bd7 {[%emt 0:18:04]} 13. b4 {[%emt 0:00:49]} Rc8 {[%emt 0:07:44]} 14. a3 {[%emt 0:01:19]} e5 {[%emt 0:02:49]} 15. Be3 {[%emt 0:01:14]} Be6 {[%emt 0:00:45]} 16. Nd5 {[%emt 0:00:23]} Nxd5 {[%emt 0:08:31]} 17. cxd5 {[%emt 0:00:38]} Bd7 {[%emt 0:00:01]} 18. b5 {[%emt 0:05:50]} f5 {[%emt 0:01:44]} 19. f3 {[%emt 0:00:30]} fxe4 {[%emt 0:00:49]} 20. fxe4 {[%emt 0:00:13]} Rxf1+ {[%emt 0:00:57]} 21. Rxf1 {[%emt 0:00:38]} Qa5 {[%emt 0:01:05]} 22. Bd2 {[%emt 0:03:23]} Qb6+ {[%emt 0:00:18]} 23. Be3 {[%emt 0:00:12]} Qa5 {[%emt 0:00:02]} 24. h3 {[%emt 0:02:35]} Rc3 {[%emt 0:11:30]} 25. Qd2 {[%emt 0:01:04]} b6 {[%emt 0:00:36]} 26. Rf2 {[%emt 0:05:29]} Rxa3 {[%emt 0:03:14]} 27. Qxa5 {[%emt 0:01:47]} bxa5 {[%emt 0:00:00]} 28. Bd2 {[%emt 0:00:36]} Rb3 {[%emt 0:02:19]} 29. Bc4 {[%emt 0:02:32]} Rb1+ {[%emt 0:00:38]} 30. Rf1 {[%emt 0:00:30]} Rb2 {[%emt 0:00:39]} 31. Bxa5 {[%emt 0:02:39]} Bxb5 {[%emt 0:00:02]} 32. Bc3 Bxc4 33. Bxb2 {[%emt 0:02:27]} Bxf1 {[%emt 0:01:42]} 34. Kxf1 {[%emt 0:00:00]} Kf7 {[%emt 0:00:44]} 35. Ke2 {[%emt 0:00:35]} Ke7 {[%emt 0:02:55]} 36. Kd3 {[%emt 0:00:26]} Kd7 {[%emt 0:00:06]} 37. Kc4 {[%emt 0:00:15]} Kc7 {[%emt 0:00:45]} 38. Kb5 {[%emt 0:00:14]} Kb7 {[%emt 0:00:42]} 39. Ba3 {[%emt 0:00:47]} Bf8 {[%emt 0:00:02]} 40. Kxa4 {[%emt 0:00:38]} Kb6 {[%emt 0:00:53]} 41. Kb4 {[%emt 0:00:11]} Be7 {[%emt 0:00:47]} 42. Kc4 {[%emt 0:00:12]} Bf8 {[%emt 0:00:49]} 43. Bc1 {[%emt 0:00:10]} Be7 {[%emt 0:00:12]} 44. Bd2 {[%emt 0:00:53]} Ka6 {[%emt 0:01:02]} 45. Be3 {[%emt 0:00:19]} Ka5 {[%emt 0:00:08]} 46. g3 {[%emt 0:00:50]} Ka6 {[%emt 0:00:48]} 47. h4 {[%emt 0:01:06]} h5 {[%emt 0:00:18]} 48. Bd2 {[%emt 0:01:22]} Kb6 {[%emt 0:00:23]} 49. Bb4 {[%emt 0:00:27]} Ka6 {[%emt 0:00:14]} 1/2-1/2

[Event "Ujir Singh Thapa Memorial 2080"]
[Site "Butwal"]
[Date "2024.04.08"]
[Round "6.3"]
[White "Raghav, Srivathsav V"]
[Black "Sinha, Sudhir Kumar"]
[Result "0-1"]
[ECO "A04"]
[WhiteElo "1983"]
[BlackElo "1968"]
[Annotator "RC"]
[PlyCount "82"]
[EventDate "2024.04.03"]
[EventType "swiss"]
[EventCountry "NEP"]
[SourceTitle "playchess.com"]
[Source "ChessBase"]
[SourceQuality "1"]
[TimeControl "3600+30"]

1. Nf3 {[%emt 0:14:25]} c5 {[%emt 0:02:22]} 2. b3 {[%emt 0:07:58]} d6 {[%emt 0:00:51]} 3. Bb2 {[%emt 0:00:13]} e5 {[%emt 0:00:17]} 4. d3 {[%emt 0:00:10]} g6 {[%emt 0:01:01]} 5. g3 {[%emt 0:00:34]} Bg7 {[%emt 0:00:11]} 6. Bg2 {[%emt 0:00:06]} Ne7 {[%emt 0:00:22]} 7. O-O {[%emt 0:00:28]} Nbc6 {[%emt 0:01:16]} 8. e4 {[%emt 0:00:40]} O-O {[%emt 0:01:55]} 9. Nfd2 {[%emt 0:03:01]} Be6 10. Nc3 Qd7 {[%emt 0:05:31]} 11. Nc4 {[%emt 0:02:33]} f5 {[%emt 0:04:10]} 12. exf5 {[%emt 0:06:35]} gxf5 {[%emt 0:03:53]} 13. f4 {[%emt 0:02:16]} exf4 {[%emt 0:06:55]} 14. gxf4 {[%emt 0:04:42]} d5 {[%emt 0:03:23]} 15. Nd2 {[%emt 0:00:17]} Ng6 {[%emt 0:01:00]} 16. Qh5 {[%emt 0:05:06]} Nd4 {[%emt 0:03:19]} 17. Rac1 Bf7 {[%emt 0:03:35]} 18. Qh3 {[%emt 0:16:08]} Qd6 {[%emt 0:03:31]} 19. Rf2 {[%emt 0:02:43]} Rad8 {[%emt 0:01:07]} 20. Rcf1 Rfe8 {[%emt 0:04:45]} 21. Kh1 {[%emt 0:02:25]} Nxc2 {[%emt 0:01:37]} 22. Nb5 {[%emt 0:00:10]} Qb6 {[%emt 0:00:19]} 23. Bxg7 {[%emt 0:00:25]} Kxg7 {[%emt 0:20:40]} 24. a4 {[%emt 0:00:51]} Ne3 {[%emt 0:00:00]} 25. Rg1 {[%emt 0:00:31]} Ng4 {[%emt 0:00:00]} 26. Qg3 {[%emt 0:00:39]} c4 {[%emt 0:00:00]} 27. Rf3 {[%emt 0:00:18]} Re2 {[%emt 0:00:00]} 28. Nf1 {[%emt 0:00:07]} cxb3 {[%emt 0:00:00]} 29. h3 {[%emt 0:00:18]} Nf2+ {[%emt 0:00:00]} 30. Kh2 {[%emt 0:00:03]} Rde8 {[%emt 0:00:00]} 31. Nc3 {[%emt 0:01:05]} Rc2 {[%emt 0:00:00]} 32. Ne3 {[%emt 0:00:22]} Rxe3 {[%emt 0:00:00]} 33. Rxe3 {[%emt 0:00:01]} d4 {[%emt 0:00:00]} 34. Re7 {[%emt 0:01:35]} dxc3 {[%emt 0:00:00]} 35. Rxb7 {[%emt 0:00:03]} Qxb7 {[%emt 0:00:00]} 36. Bxb7 {[%emt 0:00:03]} Ne4+ {[%emt 0:00:00]} 37. Qg2 {[%emt 0:00:18]} Rxg2+ {[%emt 0:00:00]} 38. Rxg2 {[%emt 0:00:01]} c2 {[%emt 0:00:00]} 39. dxe4 {[%emt 0:00:14]} c1=Q {[%emt 0:00:00]} 40. exf5 {[%emt 0:00:03]} Qxf4+ {[%emt 0:00:00]} 41. Kh1 {[%emt 0:00:02]} Qxf5 {[%emt 0:00:00]} 0-1